Cogmind - Beta 13 @@@ ROGUE MODE // 2024.05.04 @ 15:42:47 Player: ash Result: Destroyed by D-53 Grenadier with Mini Grenade Launcher Performance ------------- Evolutions (0) 0 Regions Visited (4) 800 Robots Destroyed (8) 40 Value Destroyed (195) 195 Prototype IDs (23) 460 Alien Tech Used (0) 0 Bonus (300) 300 TOTAL SCORE: 1795 Bonus ------- Aligned with FarCom 300 Cogmind --------- Core Integrity 0/250 Matter 250/300 Energy 62/125 System Corruption 0% Temperature Cool (0) Movement Walking (190) Ox1 Location -9/Mines Parts ------- > --- POWER (1) -------- Light Ion Engine > --- PROPULSION (2) --- Improved Aluminum Leg Improved Aluminum Leg > --- UTILITY (2) ------ Large Storage Unit Structural Scanner > --- WEAPON (2) ------- Beam Cannon Mining Claw > --- INVENTORY (15) --- Improved Aluminum Leg Improved Aluminum Leg Improved Aluminum Leg Compact Wheel Superbattery (1500) Assault Rifle Peak State ------------ > --- POWER ------------ Ion Engine > --- PROPULSION ------- Improved Aluminum Leg Improved Aluminum Leg > --- UTILITY ---------- Medium Storage Unit Structural Scanner > --- WEAPON ----------- EM Pulse Gun Small Laser > --- INVENTORY -------- Light Ion Engine Improved Aluminum Leg Improved Aluminum Leg Improved Aluminum Leg Improved Aluminum Leg Compact Wheel Superbattery Beam Cannon Assault Rifle Mining Claw [Rating: 11] Favorites ----------- Power Ion Engine Engine Ion Engine Propulsion Improved Aluminum Leg Leg Improved Aluminum Leg Utility Medium Storage Unit Device Structural Scanner Storage Medium Storage Unit Weapon EM Pulse Gun Energy Gun EM Pulse Gun Energy Cannon Beam Cannon Slashing Weapon Mining Claw Build | -11 -10 -10 -10 -9 ------- Run | Yrd Mat Min Exi Min Slots Evolved . | . . . . . Power . | . . . . . Propulsion . | . . . . . Utility . | . . . . . Weapon . | . . . . . Parts Attached 14 | . 7 . 3 4 Power 3 | . 2 . . 1 Engine 3 | . 2 . . 1 Core . | . . . . . Reactor . | . . . . . Propulsion 3 | . 2 . . 1 Treads . | . . . . . Leg 3 | . 2 . . 1 Wheel . | . . . . . Hover . | . . . . . Flight . | . . . . . Utility 6 | . 3 . 3 . Device 2 | . 1 . 1 . Storage 4 | . 2 . 2 . Processor . | . . . . . Hackware . | . . . . . Protection . | . . . . . Artifact . | . . . . . Weapon 2 | . . . . 2 Energy Gun . | . . . . . Energy Cannon 1 | . . . . 1 Ballistic Gun . | . . . . . Ballistic Cannon . | . . . . . Launcher . | . . . . . Special Weapon . | . . . . . Impact Weapon . | . . . . . Slashing Weapon 1 | . . . . 1 Piercing Weapon . | . . . . . Special Melee Weapon . | . . . . . Unidentified Prototypes . | . . . . . Parts Lost 5 | . 1 . . 4 Power 2 | . 1 . . 1 Propulsion 1 | . . . . 1 Utility . | . . . . . Weapon 2 | . . . . 2 Highest Loss Streak 4 | . 1 . . 4 To Critical Strikes . | . . . . . Average Slot Usage (%) 98 | . 97 100 99 100 Engine 13 | . 13 14 14 14 Leg 28 | . 28 28 28 28 Device 9 | . 1 14 13 14 Storage 17 | . 24 14 13 14 Energy Gun 27 | . 28 28 28 21 Naked Turns . | . . . . . Heaviest Build 29 | 11 20 19 29 29 Greatest Support 26 | 20 26 26 26 26 Greatest Overweight (x) 1 | . . . 1 1 Average Overweight (x) . | . . . . . Largest Inventory Capacity 35 | . 10 10 35 15 Average Capacity 10 | . 9 10 11 15 Most Carried 10 | . 10 10 10 10 Average Carried 9 | . 8 10 9 9 Final Capacity 15 | 8 10 10 15 15 Final Carried 10 | 6 10 10 10 6 Class Distribution -------------------- 100% | Mutant Dominant Class ---------------- Mutant | -10/Materials Mutant | -10/Mines Mutant | -10/Exiles Mutant | -9/Mines Resources | -11 -10 -10 -10 -9 ----------- Run | Yrd Mat Min Exi Min Matter Collected 265 | 200 65 . . . Remotely . | . . . . . Salvage Created 318 | . 318 . . . Parts 19 | . 19 . . . Haulers Intercepted 1 | . 1 . . . Recyclers Shooed 1 | . 1 . . . Parts Field Recycled . | . . . . . Retrieved Matter . | . . . . . Parts Self-Destructed . | . . . . . Prevented . | . . . . . Kills | -11 -10 -10 -10 -9 ------- Run | Yrd Mat Min Exi Min Combat Hostiles Destroyed 4 | . 4 . . . Guns 3 | . 3 . . . AOE 1 | . 1 . . . Classes Destroyed 5 | . 5 . . . Builder 1 | . 1 . . . Hauler 1 | . 1 . . . Recycler 1 | . 1 . . . Mechanic 1 | . 1 . . . Grunt 4 | . 4 . . . Best Kill Streak 3 | . 3 . . . Combat Bots Only 2 | . 2 . . . Max Kills in Single Turn 2 | . 2 . . . Gunslinging . | . . . . . Exploded 1 | . 1 . . . Melee . | . . . . . Uniques/NPCs Destroyed . | . . . . . Combat | -11 -10 -10 -10 -9 -------- Run | Yrd Mat Min Exi Min Hostile Shots Fired 49 | . 14 . . 35 Missed 15 | . 4 . . 11 Damage Taken 757 | . 233 . . 524 Core 255 | . 71 . . 184 Absorbed by Shields . | . . . . . Core Remaining (%) 100 | 100 . . . . Volleys Fired 19 | . 19 . . . Largest 2 | . 2 . . . Hottest 80 | . 80 . . . Shots Fired 38 | . 38 . . . Gun 38 | . 38 . . . Cannon . | . . . . . Launcher . | . . . . . Special . | . . . . . Kinetic . | . . . . . Thermal 19 | . 19 . . . Explosive . | . . . . . Electromagnetic 19 | . 19 . . . Robot Hit Streak 6 | . 6 . . . Robot Miss Streak 3 | . 3 . . . Penetration Max . | . . . . . Secondary Targets 1 | . 1 . . . Max Gunslinging Chain 1 | . 1 . . . Shots Hit Robots 21 | . 21 . . . Core Hits 13 | . 13 . . . Critical Kills . | . . . . . Critical Parts Destroyed . | . . . . . Critical Strikes . | . . . . . Melee Attacks . | . . . . . Impact . | . . . . . Slashing . | . . . . . Piercing . | . . . . . Sneak Attacks . | . . . . . Combat Hostiles . | . . . . . Follow-up Attacks . | . . . . . Damage Inflicted 467 | . 467 . . . Guns 253 | . 253 . . . Cannons . | . . . . . Explosions 212 | . 212 . . . Melee . | . . . . . Ramming 2 | . 2 . . . Kinetic . | . . . . . Thermal 106 | . 106 . . . Explosive 212 | . 212 . . . Electromagnetic 147 | . 147 . . . Impact . | . . . . . Slashing . | . . . . . Piercing . | . . . . . Highest Corruption . | . . . . . Average Corruption . | . . . . . Corruption Purged . | . . . . . Corruption Blocked . | . . . . . Overload Shots . | . . . . . Overflow Damage 18 | . 18 . . . Projectiles . | . . . . . Explosions 18 | . 18 . . . Melee . | . . . . . Knockbacks . | . . . . . Impact . | . . . . . Kinetic . | . . . . . Secondary . | . . . . . Self-Inflicted Damage 87 | . 87 . . . Shots 1 | . 1 . . . Rammed . | . . . . . Targets Rammed 1 | . 1 . . . Kicked 1 | . 1 . . . Crushed . | . . . . . Highest Temperature 168 | . 168 . . . Average Temperature 67 | . 67 . . . Received Heat Transfer 116 | . 96 . . 20 Siege Activations . | . . . . . Robots Corrupted . | . . . . . Combat Hostiles . | . . . . . Parts Fried . | . . . . . Impact Corruptions . | . . . . . Robots Melted . | . . . . . Combat Hostiles . | . . . . . Parts Melted . | . . . . . Heat Transferred 250 | . 250 . . . Parts Sabotaged . | . . . . . Parts Stolen . | . . . . . Parts Stripped . | . . . . . Power Chain Reactions . | . . . . . Alert | -11 -10 -10 -10 -9 ------- Run | Yrd Mat Min Exi Min Peak Influence 221 | . 221 7 . . Initial 7 | . . 7 . . Average 96 | . 125 7 . . Maximum Alert Level 1 | . 1 . . . Low Security (%) 93 | . 91 100 . 100 Level 1 6 | . 8 . . . Level 2 . | . . . . . Level 3 . | . . . . . Level 4 . | . . . . . Level 5 . | . . . . . High Security . | . . . . . Max Security . | . . . . . Squads Dispatched 2 | . 2 . . . Investigation 1 | . 1 . . . Extermination . | . . . . . Reinforcement 1 | . 1 . . . Assault . | . . . . . Garrison . | . . . . . Intercept . | . . . . . Searches Triggered . | . . . . . Construction Impeded . | . . . . . Haulers Reinforced . | . . . . . Active Scanning Responses . | . . . . . Cargo Convoy Interrupts . | . . . . . Stealth | -11 -10 -10 -10 -9 --------- Run | Yrd Mat Min Exi Min Distress Signals . | . . . . . Communications Jammed . | . . . . . Distress Signals . | . . . . . Times Spotted 32 | . 11 . . 21 Peak Tracking Total 21 | . 4 . . 21 Tactical Retreats . | . . . . . Traps | -11 -10 -10 -10 -9 ------- Run | Yrd Mat Min Exi Min Traps Triggered . | . . . . . Indirectly . | . . . . . Trap Hack Attempts . | . . . . . Triggered . | . . . . . Disarmed . | . . . . . Reprogrammed 6 | . 6 . . . Reused 1 | . 1 . . . Traps Extracted . | . . . . . Installed . | . . . . . Triggered 1 | . 1 . . . Machines | -11 -10 -10 -10 -9 ---------- Run | Yrd Mat Min Exi Min Machines Disabled 2 | . 2 . . . Max in Single Turn 1 | . 1 . . . Machines Repaired . | . . . . . Machines Dismantled . | . . . . . Machines Sabotaged . | . . . . . Overloaded Fab Kills . | . . . . . Hacking | -11 -10 -10 -10 -9 --------- Run | Yrd Mat Min Exi Min Machines Accessed 5 | . 3 . 2 . Terminals 3 | . 3 . . . Fabricators . | . . . . . Repair Stations . | . . . . . Recycling Units . | . . . . . Scanalyzers . | . . . . . Garrison Access . | . . . . . Total Hacks 16 | . 14 . 2 . Successful 6 | . 4 . 2 . Failed 10 | . 10 . . . Catastrophic 1 | . 1 . . . Database Lockouts . | . . . . . Manual 10 | . 9 . 1 . Terminals 14 | . 14 . . . Fabricators . | . . . . . Repair Stations . | . . . . . Recycling Units . | . . . . . Scanalyzers . | . . . . . Garrison Access . | . . . . . Terminal Hacks 5 | . 3 . 2 . Record 1 | . . . 1 . Locate Traps 1 | . 1 . . . Reprogram Traps 1 | . 1 . . . Recall Reinforcements 1 | . 1 . . . Derelict Proto ID Bank 1 | . . . 1 . Fabricator Hacks . | . . . . . Repair Station Hacks . | . . . . . Recycling Unit Hacks . | . . . . . Scanalyzer . | . . . . . Garrison Access Hacks . | . . . . . Unauthorized Hacks 1 | . 1 . . . Terminals 1 | . 1 . . . Botnet 1 | . 1 . . . Fabricators . | . . . . . Repair Stations . | . . . . . Recycling Units . | . . . . . Scanalyzers . | . . . . . Garrison Access . | . . . . . Data Cores Recovered . | . . . . . Used . | . . . . . Hacking Detections 3 | . 3 . . . Full Trace Events . | . . . . . Feedback Events . | . . . . . Feedback Blocked . | . . . . . Robot Schematics Acquired . | . . . . . Robots Built . | . . . . . Authchips . | . . . . . Time . | . . . . . Total Robot Build Rating . | . . . . . Part Schematics Acquired . | . . . . . Parts Built . | . . . . . Authchips . | . . . . . Time . | . . . . . Total Part Build Rating . | . . . . . Parts Repaired . | . . . . . Time . | . . . . . Parts Recycled . | . . . . . Recycled Matter . | . . . . . Retrieved Matter . | . . . . . Retrieved Components . | . . . . . Parts Scanalyzed . | . . . . . Part Schematics Acquired . | . . . . . Parts Damaged . | . . . . . Bothacking | -11 -10 -10 -10 -9 ------------ Run | Yrd Mat Min Exi Min Used RIF Installer . | . . . . . Robots Hacked . | . . . . . Non-combat . | . . . . . Combat . | . . . . . Robot Hacks Applied . | . . . . . Relay Couplers Released . | . . . . . Fabnet Peak Effective % . | . . . . . Robots Rewired . | . . . . . Allies Hacked . | . . . . . Hacks Repelled . | . . . . . Allies | -11 -10 -10 -10 -9 -------- Run | Yrd Mat Min Exi Min Total Allies 1 | . . 1 . . Largest Group 1 | . . 1 1 . Highest-Rated Group 31 | . . 31 31 . Highest-Rated Ally 31 | . . 31 31 . Total Orders . | . . . . . Ally Attacks . | . . . . . Total Damage . | . . . . . Kills . | . . . . . Allies Corrupted . | . . . . . Allies Melted . | . . . . . Intel | -11 -10 -10 -10 -9 ------- Run | Yrd Mat Min Exi Min Robot Analysis Total . | . . . . . Derelict Logs Recovered 1 | . . 1 . . Drone Launches . | . . . . . Drone Recoveries . | . . . . . Exploration | -11 -10 -10 -10 -9 ------------- Run | Yrd Mat Min Exi Min Turns Passed 1249 | . 428 106 684 31 Spaces Moved 914 | 1 289 89 520 15 Core . | . . . . . Treads . | . . . . . Legs 914 | 1 289 89 520 15 Wheels . | . . . . . Hover . | . . . . . Flight . | . . . . . Fastest Speed 120 | 120 120 120 120 120 Average Speed 126 | 120 120 120 129 185 Slowest Speed 190 | 120 120 120 190 190 Overloaded Moves . | . . . . . Propulsion Burnouts . | . . . . . Robots Hopped . | . . . . . Cave-ins Triggered . | . . . . . Exploration Rate (%) 35 | 2 50 23 91 10 Regions Visited 4 Branch Regions 3 Pre-discovered Areas 1 | . . . 1 . Known Exits Taken . | . . . . . Unknown Exits Taken 4 | 1 1 1 1 . Scrap Searched . | . . . . . Spaces Dug . | . . . . . Terrain Destroyed 25 | . 25 . . . Melee . | . . . . . Projectile . | . . . . . AOE 25 | . 25 . . . Terrain Rammed . | . . . . . Walls Destroyed . | . . . . . Machines Disabled . | . . . . . Actions | -11 -10 -10 -10 -9 --------- Run | Yrd Mat Min Exi Min Total 972 | . 333 88 532 19 Wait 2 | . 2 . . . Move 910 | . 288 88 519 15 Hop . | . . . . . Pick Up 14 | . 8 . 6 . Fast Attach 5 | . 2 . 3 . Attach 5 | . 1 . . 4 Detach . | . . . . . Swap 4 | . 4 . . . Drop 12 | . 8 . 4 . Fire 19 | . 19 . . . Melee . | . . . . . Ram . | . . . . . Kick 1 | . 1 . . . Crush . | . . . . . Escape Stasis . | . . . . . Rewire . | . . . . . Trap . | . . . . . Miscellaneous . | . . . . . Route ------- -11/Scrapyard -10/Materials (discovered 3 exits: [*Mat x2] / [*Min]) -10/Mines (discovered 2 exits: [*Mat] / *Exi) -10/Exiles -9/Mines History --------- Turn | Location | Event 1 | -11/Scrapyard | Discovered new exit (range 0) 1 | -11/Scrapyard | Entered Materials 82 | -10/Materials | Discovered new exit (range 12) 254 | -10/Materials | Discovered new exit (range 13) 287 | -10/Materials | Discovered new exit (range 15) 333 | -10/Materials | Build established: Mutant 429 | -10/Materials | Entered Mines 441 | -10/Mines | Learned 2 Materials zone layouts 516 | -10/Mines | Discovered new exit (range 5) 519 | -10/Mines | Received a Mining Laser from a helpful Derelict 530 | -10/Mines | Deemed a non-threat by the Exiles lab entrance 530 | -10/Mines | Discovered new exit (range 5) 535 | -10/Mines | Entered Exiles 535 | -10/Exiles | Accompanied by 1 ally 565 | -10/Exiles | Met 8R-AWN 585 | -10/Exiles | Met EX-HEX 617 | -10/Exiles | Met EX-BIN 635 | -10/Exiles | Aligned with FarCom system 636 | -10/Exiles | Given EX-Vault access code 664 | -10/Exiles | Opened EX-Vault 672 | -10/Exiles | Found Superbattery 712 | -10/Exiles | Warned to stay clear of 0b10 Research branches 751 | -10/Exiles | Met EX-DEC 758 | -10/Exiles | Learned location of Zion (-7) 872 | -10/Exiles | Visited The Gauntlet 1194 | -10/Exiles | Discovered new exit (range 14) 1219 | -10/Exiles | Left Exiles lab with Superbattery 1219 | -10/Exiles | Entered Mines 1222 | -9/Mines | Met a Derelict bent on vengeance 1234 | -9/Mines | Assembled infested the area 1239 | -9/Mines | Assisted by a Guerilla fighting off Assembled 1244 | -9/Mines | Core integrity fell below 50% 1248 | -9/Mines | Core integrity fell below 20% 1250 | -9/Mines | Destroyed by D-53 Grenadier with Mini Grenade Launcher Last Messages --------------- 01242_ Knocked back. 01242_ T-07 Excavator is excavating. 01244_ Sml. Laser destroyed. 01244_ HV Slug penetrates as-29682. 01244_ as-29682 suffers critical hit (Destroy). 01244_ as-29682 destroyed. 01245_ Ion Engine destroyed. 01245_ as-04884 destroyed. 01245_ as-47561 destroyed. 01245_ as-39903 destroyed. 01245_ T-07 Excavator destroyed. 01245_ EM Pulse Gun destroyed. 01246_ HV Slug penetrates Wall. 01247_ Imp. Aluminum Leg destroyed. 01247_ as-29814 destroyed. 01247_ as-01994 destroyed. 01247_ as-20850 destroyed. 01249_ HV Slug penetrates D-53 Grenadier. 01249_ D-53 Grenadier suffers critical hit (Destroy). 01249_ D-53 Grenadier knocked back. Map ----- +----------------------------------------------------+ | ?????????????????????????????????????????????????? | | ?????????????????????????????????????????????????? | | ?????????????????????????????????????????????????? | | ????????### ?????????????????????????????????????? | | ????????### ???#######???????????????????????????? | | ????????## ############## ?????????????????????? | | ???????? ##### ######## ????????????????????? | | ??????????? ## ###????????????????????? | | ???????????? ##????????????????????? | | ????????????## ##????????????????????? | | ????????????## ###????????????????????? | | ????????????## ##?????????????????????? | | ????????????## % ###?????????????????????? | | ????????????### #####??????????????????????? | | ?????????????### ###?????????????????????????? | | ?????????????#### ####????????????????????????? | | ?????????????#### ;;###???????????????????????? | | ?????????????## #####??? ##??????????????? | | ?????????????## ####??? ## ##???????????? | | ?????????????## ###; dd % ##### ## ########?????? | | ?????????????## #### ##### ## ### ###?????? | | ?????????????## ??## h a aa ?????? | | ?????????????## ??### a a